Cogmind - Beta 16.1 @@@ ROGUE MODE // 2026.02.16 @ 18:04:54 Player: Megaknight51 Result: Destroyed by S-10 Pest with Light Assault Rifle Performance ------------- Evolutions (0) 0 Regions Visited (2) 400 Robots Destroyed (34) 170 Value Destroyed (691) 691 Prototype IDs (3) 60 Alien Tech Used (0) 0 Bonus (0) 0 TOTAL SCORE: 1321 Bonus ------- None Cogmind --------- Core Integrity 0/250 Matter 245/300 Energy 125/125 System Corruption 0% Temperature Cool (22) Movement Rolling (140) Ox4 Location -10/Mines Parts ------- > --- POWER (1) -------- Light Ion Engine > --- PROPULSION (2) --- Wheel Wheel > --- UTILITY (2) ------ Huge Storage Unit Core Shielding > --- WEAPON (2) ------- Particle Gun Grenade Launcher > --- INVENTORY (25) --- Ion Engine Ion Engine Ion Engine Light Ion Engine Light Ion Engine Light Nuclear Core Light Treads Wheel Wheel Heat Sink Heat Sink High-capacity Storage Unit Sensor Array Improved Terrain Scanner Small Laser Assault Rifle Light Assault Rifle Grenade Launcher Grenade Launcher Grenade Launcher Datajack Mining Laser Welding Torch Peak State ------------ > --- POWER ------------ Ion Engine > --- PROPULSION ------- Wheel Wheel > --- UTILITY ---------- Huge Storage Unit Hacking Suite > --- WEAPON ----------- Particle Gun Light Assault Rifle > --- INVENTORY -------- Ion Engine Ion Engine Ion Engine Light Ion Engine Light Ion Engine Light Nuclear Core Light Treads Wheel Wheel Heat Sink High-capacity Storage Unit Sensor Array Improved Terrain Scanner Small Laser Grenade Launcher Grenade Launcher Grenade Launcher Grenade Launcher Datajack Mining Laser Welding Torch [Rating: 12] Favorites ----------- Power Ion Engine Engine Ion Engine Propulsion Compact Wheel Wheel Compact Wheel Utility Huge Storage Unit Device Seismic Detector Storage Huge Storage Unit Hackware Hacking Suite Protection Core Shielding Weapon Small Laser Energy Gun Small Laser Ballistic Gun Assault Rifle Launcher Grenade Launcher Special Weapon Mining Laser Build | -11 -10 -10 ------- Run | Yrd Mat Min Slots Evolved . | . . . Power . | . . . Propulsion . | . . . Utility . | . . . Weapon . | . . . Parts Attached 22 | 7 13 2 Power 3 | 1 2 . Engine 3 | 1 2 . Core . | . . . Reactor . | . . . Propulsion 4 | 2 2 . Treads . | . . . Leg . | . . . Wheel 4 | 2 2 . Hover . | . . . Flight . | . . . Utility 7 | 2 4 1 Device 1 | 1 . . Storage 3 | 1 2 . Processor . | . . . Hackware 1 | . 1 . Protection 2 | . 1 1 Artifact . | . . . Weapon 8 | 2 5 1 Energy Gun 4 | 1 3 . Energy Cannon . | . . . Ballistic Gun 2 | 1 1 . Ballistic Cannon . | . . . Launcher 1 | . . 1 Special Weapon 1 | . 1 . Impact Weapon . | . . . Slashing Weapon . | . . . Piercing Weapon . | . . . Special Melee Weapon . | . . . Unidentified Prototypes . | . . . Parts Lost 8 | . 8 . Power . | . . . Propulsion 2 | . 2 . Utility 2 | . 2 . Weapon 4 | . 4 . Highest Loss Streak 2 | . 2 . To Critical Strikes . | . . . Average Backups 15 | 2 16 23 Power 4 | 1 4 6 Propulsion 3 | . 3 3 Utility 2 | . 2 5 Weapon 3 | . 3 7 Tool/Special . | . . . Unused Backups 23 | . 3 20 Power 8 | . 2 6 Propulsion 3 | . . 3 Utility 4 | . . 4 Weapon 6 | . 1 5 Tool/Special 2 | . . 2 Average Slot Usage (%) 95 | . 94 100 Engine 14 | . 14 14 Wheel 25 | . 25 28 Device 3 | . 4 . Storage 14 | . 14 14 Hackware 8 | . 8 8 Energy Gun 13 | . 13 14 Ballistic Gun 8 | . 9 . Launcher 1 | . . 14 Special Weapon 4 | . 4 . Peak Build Rating 12 | 7 12 12 Average Rating 9 | 5 9 11 On Entrance 6 | . 7 12 Avg Prop Armor Cover (%) . | . . . Naked Turns . | . . . Heaviest Build 92 | 15 92 90 Greatest Support 32 | 32 32 20 Greatest Overweight (x) 5 | 1 5 4 Average Overweight (x) 2 | . 2 4 Largest Inventory Capacity 25 | 8 25 25 Average Capacity 23 | 7 24 25 Most Carried 24 | 7 24 23 Average Carried 15 | 2 16 23 Final Capacity 25 | 8 25 25 Final Carried 23 | 7 23 23 Class Distribution -------------------- 64% | Mutant 35% | Scavenger-Mutant Dominant Class ---------------- Mutant | -10/Materials Scavenger-Mutant | -10/Mines Resources | -11 -10 -10 ----------- Run | Yrd Mat Min Matter Collected 674 | 294 315 65 Remotely . | . . . Salvage Created 925 | 159 738 28 Parts 77 | 16 56 5 Haulers Intercepted 1 | . 1 . Recyclers Shooed . | . . . Parts Field Recycled . | . . . Retrieved Matter . | . . . Parts Self-Destructed . | . . . Prevented . | . . . Parts Restored . | . . . Kills | -11 -10 -10 ------- Run | Yrd Mat Min Combat Hostiles Destroyed 22 | . 18 4 Guns 18 | . 16 2 AOE 4 | . 2 2 Classes Destroyed 9 | 3 6 . Worker 4 | 2 2 . Builder 1 | . 1 . Tunneler 2 | 2 . . Hauler 1 | . 1 . Recycler 2 | 1 1 . Operator 1 | . 1 . Watcher 1 | . 1 . Swarmer 8 | . 6 2 Grunt 14 | . 12 2 Best Kill Streak 7 | 3 7 2 Combat Bots Only 5 | . 5 2 Max Kills in Single Turn 4 | 2 4 2 Gunslinging 1 | . 1 . Exploded 2 | . 2 2 Melee . | . . . Uniques/NPCs Destroyed . | . . . Combat | -11 -10 -10 -------- Run | Yrd Mat Min Hostile Shots Fired 100 | . 85 15 Missed 34 | . 28 6 Hits 66 | . 57 9 Projectile 66 | . 57 9 Damage Taken 893 | . 767 126 Core 254 | . 193 61 Absorbed by Shields . | . . . Redirected to Shielding 2 | . . 2 Core Remaining (%) 100 | 100 . . Volleys Fired 94 | 8 78 8 Largest 2 | 2 2 2 Hottest 100 | 60 100 95 Shots Fired 168 | 16 136 16 Gun 149 | 16 125 8 Cannon . | . . . Launcher 8 | . . 8 Special 11 | . 11 . Kinetic 71 | 8 63 . Thermal 78 | . 70 8 Explosive 8 | . . 8 Electromagnetic 11 | 8 3 . Robot Hit Streak 14 | 4 14 14 Robot Miss Streak 3 | 2 3 . Penetration Max . | . . . Secondary Targets 2 | . 2 . Max Gunslinging Chain 1 | . 1 . Shots Hit Robots 107 | 10 87 10 Core Hits 52 | 5 38 9 Critical Kills 1 | . 1 . Critical Parts Destroyed . | . . . Critical Strikes 1 | . 1 . Destroy 1 | . 1 . Melee Attacks . | . . . Impact . | . . . Slashing . | . . . Piercing . | . . . Sneak Attacks . | . . . Combat Hostiles . | . . . Follow-up Attacks . | . . . Damage Inflicted 1968 | 175 1406 387 Guns 1215 | 138 989 88 Cannons . | . . . Explosions 753 | 37 417 299 Melee . | . . . Ramming . | . . . Kinetic 570 | 70 500 . Thermal 699 | 37 574 88 Explosive 596 | . 297 299 Electromagnetic 103 | 68 35 . Impact . | . . . Slashing . | . . . Piercing . | . . . Highest Corruption . | . . . Average Corruption . | . . . Corruption Purged . | . . . Corruption Blocked . | . . . Overload Shots . | . . . Overflow Damage 89 | . 89 . Projectiles . | . . . Explosions 89 | . 89 . Melee . | . . . Knockbacks . | . . . Impact . | . . . Kinetic . | . . . Secondary . | . . . Self-Inflicted Damage 162 | . 148 14 Shots 3 | . 2 1 Rammed . | . . . Targets Rammed . | . . . Kicked . | . . . Crushed . | . . . Highest Temperature 246 | . 115 246 Average Temperature 39 | . 24 110 Received Heat Transfer 309 | . 261 48 Siege Activations . | . . . Martial Activations . | . . . Shielding Activations . | . . . Robots Disrupted . | . . . Combat Hostiles . | . . . Robots Corrupted . | . . . Combat Hostiles . | . . . Parts Fried . | . . . Impact Corruptions . | . . . Robots Melted . | . . . Combat Hostiles . | . . . Parts Melted 3 | . 3 . Heat Transferred 1459 | 50 1187 222 Parts Sabotaged . | . . . Parts Stolen . | . . . Parts Stripped . | . . . Power Chain Reactions 2 | 1 1 . Alert | -11 -10 -10 ------- Run | Yrd Mat Min Maximum Alert Level 1 | . 1 . Low Security (%) 96 | 100 96 100 Level 1 3 | . 3 . Level 2 . | . . . Level 3 . | . . . Level 4 . | . . . Level 5 . | . . . High Security . | . . . Max Security . | . . . Peak Influence 231 | 10 231 178 Initial 15 | . . 15 Average 73 | 1 77 99 Influence Increases 894 | 25 656 213 Destroy 0b10 Robot/C 440 | . 360 80 Destroy 0b10 Robot/NC 60 | 25 35 . Destroy Leader 94 | . 74 20 Successful Hack 14 | . 14 . Select Force Hacks 60 | . 60 . Disable Machine 60 | . 15 45 Destroy Structure 61 | . 38 23 Lose Combat Pursuer 105 | . 60 45 Influence Decreases 716 | 25 616 75 Entered New Map 25 | . . 25 Time Decay 461 | 25 386 50 Lost Part 80 | . 80 . Purge Threat 150 | . 150 . Squads Dispatched 4 | . 4 . Investigation 3 | . 3 . Extermination . | . . . Reinforcement 1 | . 1 . Assault . | . . . Garrison . | . . . Intercept . | . . . Searches Triggered . | . . . Construction Impeded . | . . . Haulers Reinforced . | . . . Active Scanning Responses . | . . . Cargo Convoy Interrupts . | . . . Stealth | -11 -10 -10 --------- Run | Yrd Mat Min Distress Signals 4 | . 4 . Communications Jammed . | . . . Distress Signals . | . . . Times Spotted 38 | . 31 7 Peak Tracking Total 5 | . 5 3 Tactical Retreats 3 | . 2 1 Traps | -11 -10 -10 ------- Run | Yrd Mat Min Traps Triggered 1 | . 1 . Indirectly . | . . . Trap Hack Attempts . | . . . Triggered . | . . . Disarmed . | . . . Reprogrammed . | . . . Reused . | . . . Traps Extracted . | . . . Installed . | . . . Triggered . | . . . Machines | -11 -10 -10 ---------- Run | Yrd Mat Min Machines Disabled 4 | . 1 3 Max in Single Turn 3 | . 1 3 Machines Repaired . | . . . Machines Dismantled . | . . . Machines Sabotaged . | . . . Overloaded Fab Kills . | . . . Hacking | -11 -10 -10 --------- Run | Yrd Mat Min Machines Accessed 9 | . 9 . Terminals 7 | . 7 . Fabricators . | . . . Repair Stations . | . . . Recycling Units 2 | . 2 . Scanalyzers . | . . . Garrison Access . | . . . Total Hacks 28 | . 28 . Successful 18 | . 18 . Failed 10 | . 10 . Catastrophic . | . . . Database Lockouts . | . . . Manual 20 | . 20 . Terminals 26 | . 26 . Fabricators . | . . . Repair Stations . | . . . Recycling Units 2 | . 2 . Scanalyzers . | . . . Garrison Access . | . . . Terminal Hacks 9 | . 9 . Robot Analysis 2 | . 2 . Prototype ID Bank 2 | . 2 . Branch Access Points 1 | . 1 . Terminal Index 1 | . 1 . Recycling Unit Index 1 | . 1 . Unreport Threat 1 | . 1 . Registered Prototypes 1 | . 1 . Fabricator Hacks . | . . . Repair Station Hacks . | . . . Recycling Unit Hacks . | . . . Scanalyzer . | . . . Garrison Access Hacks . | . . . Unauthorized Hacks 9 | . 9 . Terminals 7 | . 7 . Botnet 7 | . 7 . Fabricators . | . . . Repair Stations . | . . . Recycling Units 2 | . 2 . Tunnel 2 | . 2 . Scanalyzers . | . . . Garrison Access . | . . . Data Cores Recovered . | . . . Used . | . . . Hacking Detections 5 | . 5 . Full Trace Events . | . . . Feedback Events . | . . . Feedback Blocked . | . . . Robot Schematics Acquired . | . . . Robots Built . | . . . Authchips . | . . . Time . | . . . Total Robot Build Rating . | . . . Part Schematics Acquired . | . . . Parts Built . | . . . Authchips . | . . . Time . | . . . Total Part Build Rating . | . . . Part Studies Acquired . | . . . Parts Repaired . | . . . Time . | . . . Parts Recycled . | . . . Recycled Matter . | . . . Retrieved Matter . | . . . Retrieved Components . | . . . Parts Scanalyzed . | . . . Part Schematics Acquired . | . . . Parts Damaged . | . . . Bothacking | -11 -10 -10 ------------ Run | Yrd Mat Min Used RIF Installer . | . . . Robots Hacked . | . . . Non-combat . | . . . Combat . | . . . Robot Hacks Applied . | . . . Relay Couplers Released . | . . . Fabnet Peak Effective % . | . . . Robots Rewired . | . . . Allies Hacked . | . . . Hacks Repelled . | . . . Allies | -11 -10 -10 -------- Run | Yrd Mat Min Total Allies . | . . . Largest Group . | . . . Highest-Rated Group . | . . . Highest-Rated Ally . | . . . Total Orders . | . . . Ally Attacks . | . . . Total Damage . | . . . Kills . | . . . Allies Corrupted . | . . . Allies Melted . | . . . Intel | -11 -10 -10 ------- Run | Yrd Mat Min Active Infowar (turns) 472 | 27 445 . Seismic 472 | 27 445 . Robot Analysis Total 2 | . 2 . Derelict Logs Recovered . | . . . Drone Launches . | . . . Drone Recoveries . | . . . Exploration | -11 -10 -10 ------------- Run | Yrd Mat Min Turns Passed 1786 | 133 1537 116 Spaces Moved 960 | 94 805 61 Core 11 | 11 . . Treads . | . . . Legs . | . . . Wheels 949 | 83 805 61 Hover . | . . . Flight . | . . . Fastest Speed 50 | 50 100 140 Average Speed 133 | 97 136 140 Slowest Speed 175 | 100 175 140 Overloaded Moves . | . . . Propulsion Burnouts . | . . . Robots Hopped . | . . . Potential Cave-ins . | . . . Cave-ins Triggered . | . . . Exploration Rate (%) 36 | 4 94 12 Regions Visited 2 Branch Regions 1 Pre-discovered Areas 2 | . 2 . Known Exits Taken 1 | . 1 . Unknown Exits Taken 1 | 1 . . Scrap Searched 1 | . . 1 Spaces Dug 11 | . 11 . Terrain Destroyed 86 | 4 44 38 Melee . | . . . Projectile 11 | . 11 . AOE 75 | 4 33 38 Terrain Rammed . | . . . Walls Destroyed . | . . . Machines Disabled . | . . . Actions | -11 -10 -10 --------- Run | Yrd Mat Min Total 1273 | 115 1082 76 Wait 152 | . 148 4 Move 958 | 93 804 61 Hop . | . . . Pick Up 32 | 7 25 . Fast Attach 10 | 7 2 1 Attach 6 | . 6 . Detach 1 | . . 1 Swap 13 | . 12 1 Drop 7 | . 7 . Fire 94 | 8 78 8 Melee . | . . . Ram . | . . . Kick . | . . . Crush . | . . . Escape Stasis . | . . . Rewire . | . . . Trap . | . . . Miscellaneous . | . . . Route ------- -11/Scrapyard -10/Materials (discovered 4 exits: [*Mat x3] / *Min) -10/Mines History --------- Turn | Location | Event 9 | -11/Scrapyard | Discovered new exit (range 16) 134 | -11/Scrapyard | Entered Materials 313 | -10/Materials | Build established: Mutant 323 | -10/Materials | Discovered new exit (range 3) 419 | -10/Materials | Discovered new exit (range 10) 1070 | -10/Materials | Identified exit to Mines 1215 | -10/Materials | Core integrity fell below 50% 1334 | -10/Materials | Discovered new exit (range 4) 1491 | -10/Materials | Build established: Scavenger-Mutant 1671 | -10/Materials | Entered Mines 1674 | -10/Mines | Core integrity fell below 20% 1787 | -10/Mines | Destroyed by S-10 Pest with Light Assault Rifle Last Messages --------------- alone as hauler escorts to protect those with more valuable cargo. 01569_ K-01 Serf cleans the Terminal. 01577_ K-01 Serf cleans the Processing Tank. LOCATION=MINES GOAL=ESCAPE 01673_ Laser Drill disabled. 01676_ G-34 Mercenary destroyed. 01687_ Laser Drill disabled. 01688_ G-47 Trooper destroyed. 01695_ The unstable cave ceiling collapses. 01695_ Acquired 2 matter. 01711_ Searching scrap... 01711_ Found 61 Matter. 01711_ Found Core Shielding. 01711_ Found Hover Unit. 01711_ Found 63 Matter. 01712_ Acquired 63 matter. 01733_ Discarded Hacking Suite. 01734_ Acquired Core Shielding. 01785_ S-10 Pest destroyed. Map ----- +----------------------------------------------------+ | ???????????????????????????????????????????????? | | ???????????????????????????????????????????????? | | ???????????????????????????????????????????????? | | ???????????????????????????????????????????????? | | ???????????????????????????????????????????????? | | ???????????????????????????????????????????????? | | ???????????????????????????????????????????????? | | ???????????????????????????????????##########??? | | ???????????????????????????????????# ?#?? | | ???????????????????????????????????# """ """ #?? | | ???????????????????????????????????# """ """ #?? | | ??????????????????????#????????????# "" """ #?? | | ????????????????????### ???????????# #?? | | ???????????????????## ??????#????# """ #?? | | ???????????????????# *s??????# #### " #?? | | ???????????????????# %[??????# = % #?? | | ???????????????????# ??????#### # = #?? | | ???????????????????# ????????# # #?? | | ??????????????????## ????????# # " #?? | | ?????????????????## ????????# # #?? | | ?????????????????# ????????# # #? | | ?????????????????# ????????# ## # #? | | ??????????????????# ##??????# ## ##? | | ??????????????????# #??????# ###### #?? | | ??????????????????# ######## #?????#####?? | | ??????????????????# @ #???????????? | | ??????????????????# ###########???????????? | | ??????????????????# #??????????????????????? | | ?????????????????# #???????????????????????? | | ?????????????????# ????????????????????????? | | ?????????????????# ?????????????????????????? | | ?????????????????## ??????????????????????????? | | ??????????????????##???????????????????????????? | | ???????????????????????????????????????????????? | | ???????????????????????????????????????????????? | | | | | | | | | | | | | | | | | | | | | | | | | | | | | | | +----------------------------------------------------+ Best States ------------- Heat Dissipation 25 Energy Generation 10 Energy Capacity 250 Matter Stores 300 Matter Capacity 300 Sight Range 16 Terrain Scan Density 10 Armor Coverage 150 Core Shielding 20 Evasion (%) 40 Offensive Hacking 10 Item Schematics ----------------- None Robot Schematics ------------------ None Fabricated ------------ Nothing Repaired ---------- Nothing Studied --------- None Alien Tech Used ----------------- None Achievements -------------- None Challenges ------------ None Game ------ Seed DerelictGravjetBrace Manual? 0 Play Time 00:10:33 Cumulative 77.9 hours Start 2026.02.16 @ 17:54:54 End 2026.02.16 @ 18:04:54 Sessions 1 Manual Loads 0 Difficulty Rogue Special Mode None Game No. 165 Rogue 165 Adventurer 0 Explorer 0 Win Type - Total 1 Types 1/0/0/0/0/0/0/0/0/0 Lore% 49 Gallery% 37 Achievement% 36 Wizard Run 0 Options --------- Layout 0 ASCII 0 Keyboard 1 Movement Arrows Keybinds 0 Fullscreen 1 Font 18/Smallcaps Map View 38x25 Zoom Use 68% Tactical HUD 1 Map Filters NONE Filters NONE Steam 1 RUN: 23ed0d1b-0cd4-41cb-bb38-9a670cb935e3